[Event "December 12 Late 2023"]
[Site "https://www.chess.com"]
[Date "2023.12.12"]
[Round "4"]
[White "Hartikainen, Jarmo"]
[Black "Ramadoss, Ashokkumar"]
[Result "0-1"]
[Board "149"]
[TimeControl "180+1"]
[WhiteFideId "503134"]
[BlackFideId "5040990"]
[WhiteElo "2127"]
[BlackElo "2319"]
[WhiteTeam "FIN"]
[BlackTeam "IND"]
[WhiteClock "0:00:00"]
[BlackClock "0:01:51"]

1. e4 {[%clk 0:03:00]}  e6 {[%clk 0:03:00]} 2. d4 {[%clk 0:03:00]}  d5 {[%clk 0:03:00]} 3. Nd2 {[%clk 0:03:00]}  Be7 {[%clk 0:03:00]} 4. Ngf3 {[%clk 0:02:59]}  Nf6 {[%clk 0:03:00]} 5. e5 {[%clk 0:02:51]}  Nfd7 {[%clk 0:03:00]} 6. Bd3 {[%clk 0:02:49]}  c5 {[%clk 0:03:01]} 7. c3 {[%clk 0:02:49]}  Nc6 {[%clk 0:03:02]} 8. Bc2 {[%clk 0:02:06]}  Qb6 {[%clk 0:02:53]} 9. Nb3 {[%clk 0:02:03]}  cxd4 {[%clk 0:02:48]} 10. cxd4 {[%clk 0:02:02]}  Nb4 {[%clk 0:02:49]} 11. Bb1 {[%clk 0:01:59]}  a5 {[%clk 0:02:39]} 12. Be3 {[%clk 0:01:35]}  a4 {[%clk 0:02:37]} 13. Nc1 {[%clk 0:01:29]}  a3 {[%clk 0:02:30]} 14. b3 {[%clk 0:01:23]}  Nb8 {[%clk 0:02:29]} 15. O-O {[%clk 0:01:15]}  Bd7 {[%clk 0:02:26]} 16. Re1 {[%clk 0:01:04]}  Bb5 {[%clk 0:02:24]} 17. h4 {[%clk 0:00:53]}  h6 {[%clk 0:02:20]} 18. h5 {[%clk 0:00:46]}  N8c6 {[%clk 0:02:20]} 19. Nd3 {[%clk 0:00:42]}  Nxd3 {[%clk 0:02:16]} 20. Bxd3 {[%clk 0:00:41]}  Bxd3 {[%clk 0:02:17]} 21. Qxd3 {[%clk 0:00:41]}  Nb4 {[%clk 0:02:17]} 22. Qd2 {[%clk 0:00:37]}  Rc8 {[%clk 0:02:15]} 23. Rec1 {[%clk 0:00:36]}  Kd7 {[%clk 0:02:15]} 24. Ne1 {[%clk 0:00:31]}  Qa6 {[%clk 0:02:11]} 25. Kh2 {[%clk 0:00:17]}  b6 {[%clk 0:02:08]} 26. Nf3 {[%clk 0:00:07]}  Qd3 {[%clk 0:02:05]} 27. Qxd3 {[%clk 0:00:06]}  Nxd3 {[%clk 0:02:06]} 28. Rxc8 {[%clk 0:00:06]}  Rxc8 {[%clk 0:02:06]} 29. g3 {[%clk 0:00:06]}  Rc2 {[%clk 0:02:04]} 30. Kg2 {[%clk 0:00:07]}  Nb4 {[%clk 0:02:03]} 31. Ne1 {[%clk 0:00:02]}  Rxa2 {[%clk 0:02:02]} 32. Rxa2 {[%clk 0:00:01]}  Nxa2 {[%clk 0:02:01]} 33. Nc2 {[%clk 0:00:00]}  Kc6 {[%clk 0:01:51]} 0-1

[Event "December 12 Late 2023"]
[Site "https://www.chess.com"]
[Date "2023.12.12"]
[Round "4"]
[White "Bonin, Jay"]
[Black "ogpin"]
[Result "1/2-1/2"]
[Board "150"]
[TimeControl "180+1"]
[WhiteFideId "2000644"]
[WhiteElo "2317"]
[BlackElo "2123"]
[WhiteTeam "USA"]
[WhiteClock "0:01:59"]
[BlackClock "0:01:34"]

1. d4 {[%clk 0:02:59]}  Nf6 {[%clk 0:02:59]} 2. Nf3 {[%clk 0:02:59]}  b6 {[%clk 0:02:58]} 3. Bg5 {[%clk 0:02:57]}  Bb7 {[%clk 0:02:58]} 4. Bxf6 {[%clk 0:02:56]}  exf6 {[%clk 0:02:59]} 5. Nbd2 {[%clk 0:02:55]}  g6 {[%clk 0:02:59]} 6. e3 {[%clk 0:02:54]}  Bg7 {[%clk 0:02:59]} 7. Bd3 {[%clk 0:02:51]}  O-O {[%clk 0:02:59]} 8. O-O {[%clk 0:02:50]}  Nc6 {[%clk 0:02:55]} 9. a3 {[%clk 0:02:48]}  Re8 {[%clk 0:02:55]} 10. c4 {[%clk 0:02:46]}  f5 {[%clk 0:02:52]} 11. Rc1 {[%clk 0:02:45]}  a5 {[%clk 0:02:51]} 12. c5 {[%clk 0:02:43]}  bxc5 {[%clk 0:02:49]} 13. Rxc5 {[%clk 0:02:42]}  d6 {[%clk 0:02:48]} 14. Rc3 {[%clk 0:02:35]}  Ne7 {[%clk 0:02:46]} 15. Qc2 {[%clk 0:02:32]}  Nd5 {[%clk 0:02:45]} 16. Rb3 {[%clk 0:02:21]}  Rb8 {[%clk 0:02:39]} 17. Bc4 {[%clk 0:02:17]}  Nb6 {[%clk 0:02:32]} 18. Bd3 {[%clk 0:02:10]}  Nd5 {[%clk 0:02:12]} 19. Bc4 {[%clk 0:02:00]}  Nb6 {[%clk 0:02:12]} 20. Bd3 {[%clk 0:01:59]}  Nd5 {[%clk 0:01:34]} 1/2-1/2

[Event "December 12 Late 2023"]
[Site "https://www.chess.com"]
[Date "2023.12.12"]
[Round "4"]
[White "Powell, Paul"]
[Black "Silvestre, Christian"]
[Result "0-1"]
[Board "151"]
[TimeControl "180+1"]
[WhiteFideId "2005840"]
[BlackFideId "30956269"]
[WhiteElo "2123"]
[BlackElo "2306"]
[WhiteTeam "USA"]
[BlackTeam "USA"]
[WhiteClock "0:00:04"]
[BlackClock "0:01:46"]

1. d4 {[%clk 0:02:52]}  e5 {[%clk 0:02:59]} 2. dxe5 {[%clk 0:02:52]}  Nc6 {[%clk 0:02:57]} 3. Nf3 {[%clk 0:02:47]}  Qe7 {[%clk 0:02:57]} 4. Nc3 {[%clk 0:02:47]}  Nxe5 {[%clk 0:02:56]} 5. Nxe5 {[%clk 0:02:47]}  Qxe5 {[%clk 0:02:55]} 6. Qd5 {[%clk 0:02:47]}  Qxd5 {[%clk 0:02:52]} 7. Nxd5 {[%clk 0:02:47]}  Kd8 {[%clk 0:02:53]} 8. Bg5+ {[%clk 0:02:45]}  f6 {[%clk 0:02:52]} 9. Bf4 {[%clk 0:02:45]}  d6 {[%clk 0:02:48]} 10. O-O-O {[%clk 0:02:41]}  c6 {[%clk 0:02:48]} 11. Nc3 {[%clk 0:02:39]}  Kc7 {[%clk 0:02:47]} 12. e4 {[%clk 0:02:38]}  Be6 {[%clk 0:02:47]} 13. Be2 {[%clk 0:02:30]}  Nh6 {[%clk 0:02:41]} 14. h3 {[%clk 0:02:28]}  Nf7 {[%clk 0:02:41]} 15. Bh2 {[%clk 0:02:15]}  a5 {[%clk 0:02:40]} 16. Kb1 {[%clk 0:02:09]}  a4 {[%clk 0:02:39]} 17. a3 {[%clk 0:02:09]}  b5 {[%clk 0:02:38]} 18. f4 {[%clk 0:02:03]}  Be7 {[%clk 0:02:33]} 19. Rhf1 {[%clk 0:01:43]}  Rhb8 {[%clk 0:02:31]} 20. f5 {[%clk 0:01:39]}  Bd7 {[%clk 0:02:29]} 21. g4 {[%clk 0:01:31]}  Ne5 {[%clk 0:02:28]} 22. h4 {[%clk 0:01:27]}  b4 {[%clk 0:02:26]} 23. axb4 {[%clk 0:01:25]}  Rxb4 {[%clk 0:02:27]} 24. Kc1 {[%clk 0:01:25]}  a3 {[%clk 0:02:25]} 25. bxa3 {[%clk 0:00:42]}  Rxa3 {[%clk 0:02:24]} 26. Kd2 {[%clk 0:00:42]}  Bc8 {[%clk 0:01:57]} 27. Ra1 {[%clk 0:00:38]}  Rd4+ {[%clk 0:01:55]} 28. Bd3 {[%clk 0:00:34]}  Nc4+ {[%clk 0:01:50]} 29. Kc1 {[%clk 0:00:17]}  Rxc3 {[%clk 0:01:51]} 30. Ra7+ {[%clk 0:00:15]}  Bb7 {[%clk 0:01:49]} 31. g5 {[%clk 0:00:11]}  Rdxd3 {[%clk 0:01:47]} 32. gxf6 {[%clk 0:00:04]}  Bxf6 {[%clk 0:01:46]} 0-1

[Event "December 12 Late 2023"]
[Site "https://www.chess.com"]
[Date "2023.12.12"]
[Round "4"]
[White "Bazzano, Sebastian"]
[Black "Estevez Polanco, Leonardo Rafael"]
[Result "1-0"]
[Board "152"]
[TimeControl "180+1"]
[WhiteFideId "104566"]
[BlackFideId "6402798"]
[WhiteElo "2304"]
[BlackElo "2095"]
[WhiteTeam "ARG"]
[BlackTeam "DOM"]
[WhiteClock "0:01:22"]
[BlackClock "0:01:23"]

1. d4 {[%clk 0:03:00]}  Nf6 {[%clk 0:02:59]} 2. Bf4 {[%clk 0:03:00]}  c5 {[%clk 0:02:59]} 3. e3 {[%clk 0:03:00]}  Qb6 {[%clk 0:02:58]} 4. b3 {[%clk 0:02:59]}  e6 {[%clk 0:02:57]} 5. Nf3 {[%clk 0:02:59]}  Nc6 {[%clk 0:02:55]} 6. Be2 {[%clk 0:02:59]}  cxd4 {[%clk 0:02:55]} 7. exd4 {[%clk 0:02:59]}  Nd5 {[%clk 0:02:55]} 8. Bg3 {[%clk 0:02:35]}  Bb4+ {[%clk 0:02:54]} 9. Kf1 {[%clk 0:02:35]}  Nc3 {[%clk 0:02:50]} 10. Nxc3 {[%clk 0:02:32]}  Bxc3 {[%clk 0:02:50]} 11. Rb1 {[%clk 0:02:33]}  Nxd4 {[%clk 0:02:49]} 12. Nxd4 {[%clk 0:02:30]}  Qxd4 {[%clk 0:02:49]} 13. Bd3 {[%clk 0:02:23]}  O-O {[%clk 0:02:41]} 14. h4 {[%clk 0:02:23]}  e5 {[%clk 0:02:36]} 15. h5 {[%clk 0:02:22]}  e4 {[%clk 0:02:35]} 16. Bc4 {[%clk 0:02:17]}  Qxd1+ {[%clk 0:02:23]} 17. Rxd1 {[%clk 0:02:18]}  a6 {[%clk 0:02:23]} 18. Bd5 {[%clk 0:02:11]}  Re8 {[%clk 0:02:18]} 19. Rh4 {[%clk 0:02:05]}  Bf6 {[%clk 0:02:00]} 20. Rxe4 {[%clk 0:01:46]}  Rxe4 {[%clk 0:01:57]} 21. Bxe4 {[%clk 0:01:47]}  d5 {[%clk 0:01:52]} 22. Bxd5 {[%clk 0:01:43]}  Bg4 {[%clk 0:01:51]} 23. f3 {[%clk 0:01:40]}  Bxh5 {[%clk 0:01:50]} 24. Bxb7 {[%clk 0:01:40]}  Ra7 {[%clk 0:01:41]} 25. Rd7 {[%clk 0:01:28]}  a5 {[%clk 0:01:23]} 26. Bf2 {[%clk 0:01:22]} 1-0

[Event "December 12 Late 2023"]
[Site "https://www.chess.com"]
[Date "2023.12.12"]
[Round "4"]
[White "Nechitaylo, Nikita"]
[Black "Kniazev, Igor"]
[Result "1-0"]
[Board "153"]
[TimeControl "180+1"]
[WhiteFideId "34138161"]
[BlackFideId "4136349"]
[WhiteElo "2280"]
[BlackElo "2094"]
[WhiteTeam "UKR"]
[BlackTeam "RUS"]
[WhiteClock "0:00:55"]
[BlackClock "0:00:34"]

1. d4 {[%clk 0:03:00]}  Nf6 {[%clk 0:02:59]} 2. c4 {[%clk 0:03:01]}  c5 {[%clk 0:03:00]} 3. d5 {[%clk 0:02:59]}  b5 {[%clk 0:03:00]} 4. cxb5 {[%clk 0:02:59]}  a6 {[%clk 0:03:01]} 5. bxa6 {[%clk 0:03:00]}  Bxa6 {[%clk 0:03:01]} 6. Nc3 {[%clk 0:03:01]}  g6 {[%clk 0:03:00]} 7. e4 {[%clk 0:03:01]}  Bxf1 {[%clk 0:03:00]} 8. Kxf1 {[%clk 0:03:02]}  d6 {[%clk 0:03:00]} 9. Nf3 {[%clk 0:03:02]}  Bg7 {[%clk 0:03:00]} 10. g3 {[%clk 0:03:03]}  O-O {[%clk 0:03:00]} 11. Kg2 {[%clk 0:03:03]}  Qa5 {[%clk 0:03:00]} 12. a4 {[%clk 0:02:56]}  Ng4 {[%clk 0:02:56]} 13. Bd2 {[%clk 0:02:47]}  Na6 {[%clk 0:02:48]} 14. h3 {[%clk 0:02:31]}  Ne5 {[%clk 0:02:47]} 15. Nxe5 {[%clk 0:02:32]}  Bxe5 {[%clk 0:02:46]} 16. f4 {[%clk 0:02:32]}  Bd4 {[%clk 0:02:17]} 17. Nb5 {[%clk 0:02:26]}  Qb6 {[%clk 0:02:15]} 18. Nxd4 {[%clk 0:02:12]}  cxd4 {[%clk 0:02:16]} 19. b4 {[%clk 0:02:09]}  Rfc8 {[%clk 0:02:03]} 20. Qe2 {[%clk 0:01:30]}  Nxb4 {[%clk 0:01:40]} 21. Rhb1 {[%clk 0:01:18]}  d3 {[%clk 0:01:40]} 22. Qe1 {[%clk 0:01:14]}  Rc2 {[%clk 0:01:33]} 23. Kh1 {[%clk 0:01:14]}  Rxd2 {[%clk 0:00:53]} 24. Qxd2 {[%clk 0:01:14]}  Rb8 {[%clk 0:00:53]} 25. a5 {[%clk 0:01:08]}  Qd4 {[%clk 0:00:52]} 26. a6 {[%clk 0:01:04]}  Qxe4+ {[%clk 0:00:45]} 27. Kh2 {[%clk 0:00:59]}  Nxa6 {[%clk 0:00:40]} 28. Rxb8+ {[%clk 0:00:53]}  Nxb8 {[%clk 0:00:38]} 29. Ra8 {[%clk 0:00:52]}  Qe2+ {[%clk 0:00:37]} 30. Qxe2 {[%clk 0:00:52]}  dxe2 {[%clk 0:00:37]} 31. Rxb8+ {[%clk 0:00:53]}  Kg7 {[%clk 0:00:37]} 32. Rb1 {[%clk 0:00:54]}  Kf6 {[%clk 0:00:37]} 33. Re1 {[%clk 0:00:55]}  e6 {[%clk 0:00:37]} 34. Rxe2 {[%clk 0:00:56]}  exd5 {[%clk 0:00:34]} 35. Kg2 {[%clk 0:00:55]} 1-0

[Event "December 12 Late 2023"]
[Site "https://www.chess.com"]
[Date "2023.12.12"]
[Round "4"]
[White "Player, Edmund C"]
[Black "Hernandez Bonilla, Amelia"]
[Result "1-0"]
[Board "154"]
[TimeControl "180+1"]
[WhiteFideId "406520"]
[BlackFideId "3900193"]
[WhiteElo "2278"]
[BlackElo "2030"]
[WhiteTeam "ENG"]
[BlackTeam "VEN"]
[WhiteClock "0:00:05"]
[BlackClock "0:00:00"]

1. Nc3 {[%clk 0:02:59]}  c5 {[%clk 0:02:55]} 2. e4 {[%clk 0:02:55]}  d6 {[%clk 0:02:54]} 3. f4 {[%clk 0:02:52]}  Nc6 {[%clk 0:02:54]} 4. Nf3 {[%clk 0:02:52]}  Bg4 {[%clk 0:02:51]} 5. Bb5 {[%clk 0:02:50]}  e6 {[%clk 0:02:50]} 6. Bxc6+ {[%clk 0:02:45]}  bxc6 {[%clk 0:02:50]} 7. O-O {[%clk 0:02:46]}  Be7 {[%clk 0:02:45]} 8. d3 {[%clk 0:02:40]}  Nf6 {[%clk 0:02:44]} 9. h3 {[%clk 0:02:27]}  Bxf3 {[%clk 0:02:44]} 10. Qxf3 {[%clk 0:02:28]}  O-O {[%clk 0:02:43]} 11. f5 {[%clk 0:02:21]}  e5 {[%clk 0:02:36]} 12. g4 {[%clk 0:02:06]}  Ne8 {[%clk 0:02:34]} 13. Ne2 {[%clk 0:02:00]}  Rb8 {[%clk 0:02:31]} 14. Ng3 {[%clk 0:01:57]}  Bg5 {[%clk 0:02:24]} 15. b3 {[%clk 0:01:49]}  Bxc1 {[%clk 0:02:22]} 16. Raxc1 {[%clk 0:01:46]}  a5 {[%clk 0:02:21]} 17. a4 {[%clk 0:01:45]}  d5 {[%clk 0:02:17]} 18. Nh5 {[%clk 0:01:35]}  f6 {[%clk 0:01:59]} 19. h4 {[%clk 0:01:23]}  Rb4 {[%clk 0:01:50]} 20. Kh1 {[%clk 0:01:10]}  c4 {[%clk 0:01:31]} 21. Rg1 {[%clk 0:00:54]}  cxd3 {[%clk 0:01:06]} 22. cxd3 {[%clk 0:00:52]}  dxe4 {[%clk 0:01:06]} 23. dxe4 {[%clk 0:00:52]}  Qd4 {[%clk 0:01:03]} 24. Rce1 {[%clk 0:00:44]}  Nd6 {[%clk 0:00:53]} 25. Ng3 {[%clk 0:00:34]}  Rfb8 {[%clk 0:00:46]} 26. Re3 {[%clk 0:00:32]}  Qb6 {[%clk 0:00:33]} 27. g5 {[%clk 0:00:25]}  fxg5 {[%clk 0:00:23]} 28. f6 {[%clk 0:00:17]}  Rxb3 {[%clk 0:00:22]} 29. Rxb3 {[%clk 0:00:18]}  Qxb3 {[%clk 0:00:22]} 30. Qg4 {[%clk 0:00:15]}  Qe3 {[%clk 0:00:06]} 31. fxg7 {[%clk 0:00:10]}  Re8 {[%clk 0:00:00]} 32. Rg2 {[%clk 0:00:05]} 1-0

[Event "December 12 Late 2023"]
[Site "https://www.chess.com"]
[Date "2023.12.12"]
[Round "5"]
[White "Salem, A.R. Saleh"]
[Black "Nihal Sarin"]
[Result "0-1"]
[Board "1"]
[TimeControl "180+1"]
[WhiteFideId "9301348"]
[BlackFideId "25092340"]
[WhiteElo "3009"]
[BlackElo "3149"]
[WhiteTeam "UAE"]
[BlackTeam "IND"]
[WhiteClock "0:00:08"]
[BlackClock "0:00:54"]

1. d4 {[%clk 0:02:55]}  d5 {[%clk 0:03:00]} 2. c4 {[%clk 0:02:55]}  c6 {[%clk 0:03:00]} 3. Nf3 {[%clk 0:02:56]}  Nf6 {[%clk 0:03:00]} 4. Nc3 {[%clk 0:02:48]}  a6 {[%clk 0:03:00]} 5. g3 {[%clk 0:02:42]}  g6 {[%clk 0:02:42]} 6. Bg2 {[%clk 0:02:39]}  Bg7 {[%clk 0:02:42]} 7. O-O {[%clk 0:02:40]}  O-O {[%clk 0:02:43]} 8. cxd5 {[%clk 0:02:34]}  cxd5 {[%clk 0:02:44]} 9. Ne5 {[%clk 0:02:30]}  e6 {[%clk 0:02:44]} 10. Bf4 {[%clk 0:02:30]}  Nh5 {[%clk 0:02:33]} 11. Be3 {[%clk 0:02:27]}  Nd7 {[%clk 0:02:33]} 12. f4 {[%clk 0:02:24]}  b5 {[%clk 0:02:29]} 13. Rc1 {[%clk 0:02:17]}  Bb7 {[%clk 0:02:28]} 14. Bf2 {[%clk 0:02:10]}  Nhf6 {[%clk 0:02:24]} 15. a3 {[%clk 0:02:08]}  Rc8 {[%clk 0:02:24]} 16. e3 {[%clk 0:02:04]}  Nb6 {[%clk 0:02:13]} 17. Nd3 {[%clk 0:01:41]}  Nc4 {[%clk 0:02:09]} 18. Qe2 {[%clk 0:01:33]}  Nd7 {[%clk 0:02:07]} 19. g4 {[%clk 0:01:30]}  Re8 {[%clk 0:02:05]} 20. g5 {[%clk 0:01:30]}  Qa5 {[%clk 0:01:47]} 21. h4 {[%clk 0:01:19]}  Rc7 {[%clk 0:01:47]} 22. Be1 {[%clk 0:01:12]}  Qb6 {[%clk 0:01:45]} 23. Ra1 {[%clk 0:01:12]}  Nxe3 {[%clk 0:01:44]} 24. Rf3 {[%clk 0:00:49]}  Bxd4 {[%clk 0:01:41]} 25. Bf2 {[%clk 0:00:25]}  Nxg2 {[%clk 0:01:37]} 26. Bxd4 {[%clk 0:00:25]}  Qxd4+ {[%clk 0:01:37]} 27. Kxg2 {[%clk 0:00:25]}  e5 {[%clk 0:01:14]} 28. Nf2 {[%clk 0:00:25]}  e4 {[%clk 0:01:11]} 29. Rg3 {[%clk 0:00:25]}  Qc4 {[%clk 0:01:04]} 30. Qxc4 {[%clk 0:00:21]}  Rxc4 {[%clk 0:01:03]} 31. Re1 {[%clk 0:00:08]}  d4 {[%clk 0:00:54]} 0-1

[Event "December 12 Late 2023"]
[Site "https://www.chess.com"]
[Date "2023.12.12"]
[Round "5"]
[White "Hakobyan, Aram"]
[Black "Duda, Jan-Krzysztof"]
[Result "1-0"]
[Board "2"]
[TimeControl "180+1"]
[WhiteFideId "13306677"]
[BlackFideId "1170546"]
[WhiteElo "3007"]
[BlackElo "3069"]
[WhiteTeam "ARM"]
[BlackTeam "POL"]
[WhiteClock "0:00:31"]
[BlackClock "0:00:00"]

1. d4 {[%clk 0:03:00]}  Nf6 {[%clk 0:02:57]} 2. c4 {[%clk 0:03:00]}  g6 {[%clk 0:02:57]} 3. Nc3 {[%clk 0:03:00]}  d5 {[%clk 0:02:56]} 4. cxd5 {[%clk 0:02:59]}  Nxd5 {[%clk 0:02:57]} 5. e4 {[%clk 0:02:59]}  Nxc3 {[%clk 0:02:57]} 6. bxc3 {[%clk 0:03:00]}  Bg7 {[%clk 0:02:57]} 7. Nf3 {[%clk 0:03:00]}  c5 {[%clk 0:02:57]} 8. Bb5+ {[%clk 0:02:59]}  Nc6 {[%clk 0:02:56]} 9. O-O {[%clk 0:02:57]}  O-O {[%clk 0:02:50]} 10. Bxc6 {[%clk 0:02:57]}  bxc6 {[%clk 0:02:51]} 11. Qc2 {[%clk 0:02:57]}  cxd4 {[%clk 0:02:46]} 12. cxd4 {[%clk 0:02:58]}  Bg4 {[%clk 0:02:44]} 13. Ne5 {[%clk 0:02:55]}  Qxd4 {[%clk 0:02:44]} 14. Bb2 {[%clk 0:02:54]}  Qb6 {[%clk 0:02:44]} 15. Rab1 {[%clk 0:02:52]}  Bxe5 {[%clk 0:02:44]} 16. Bxe5 {[%clk 0:02:53]}  Qa5 {[%clk 0:02:45]} 17. Bc3 {[%clk 0:02:50]}  Qc5 {[%clk 0:02:45]} 18. Qb2 {[%clk 0:02:42]}  a5 {[%clk 0:02:37]} 19. Rbc1 {[%clk 0:02:31]}  Rfb8 {[%clk 0:02:30]} 20. Qd2 {[%clk 0:02:17]}  Qh5 {[%clk 0:01:55]} 21. Ba1 {[%clk 0:02:16]}  Qb5 {[%clk 0:01:07]} 22. h3 {[%clk 0:01:53]}  Be6 {[%clk 0:01:04]} 23. f4 {[%clk 0:01:38]}  Rd8 {[%clk 0:00:52]} 24. Qf2 {[%clk 0:01:32]}  f6 {[%clk 0:00:50]} 25. f5 {[%clk 0:01:31]}  Bc4 {[%clk 0:00:18]} 26. Rfe1 {[%clk 0:01:27]}  Rd7 {[%clk 0:00:14]} 27. e5 {[%clk 0:01:17]}  Rf8 {[%clk 0:00:13]} 28. Qg3 {[%clk 0:01:05]}  Bd3 {[%clk 0:00:11]} 29. exf6 {[%clk 0:00:49]}  exf6 {[%clk 0:00:11]} 30. fxg6 {[%clk 0:00:50]}  hxg6 {[%clk 0:00:12]} 31. Qf2 {[%clk 0:00:46]}  Bc4 {[%clk 0:00:06]} 32. Re4 {[%clk 0:00:38]}  Bd5 {[%clk 0:00:06]} 33. Rf4 {[%clk 0:00:39]}  Rdf7 {[%clk 0:00:05]} 34. Qg3 {[%clk 0:00:33]}  g5 {[%clk 0:00:04]} 35. Rxf6 {[%clk 0:00:31]}  Rxf6 {[%clk 0:00:04]} 36. Qxg5+ {[%clk 0:00:31]}  Kf7 {[%clk 0:00:02]} 37. Qxf6+ {[%clk 0:00:31]}  Ke8 {[%clk 0:00:00]} 38. Re1+ {[%clk 0:00:31]} 1-0

[Event "December 12 Late 2023"]
[Site "https://www.chess.com"]
[Date "2023.12.12"]
[Round "5"]
[White "Cordova, Emilio"]
[Black "Martinez Alcantara, Jose Eduardo"]
[Result "0-1"]
[Board "3"]
[TimeControl "180+1"]
[WhiteFideId "3801497"]
[BlackFideId "3805662"]
[WhiteElo "2928"]
[BlackElo "3066"]
[WhiteTeam "PER"]
[BlackTeam "PER"]
[WhiteClock "0:00:00"]
[BlackClock "0:00:06"]

1. d4 {[%clk 0:02:57]}  Nf6 {[%clk 0:03:00]} 2. Bg5 {[%clk 0:02:56]}  e6 {[%clk 0:02:58]} 3. Nd2 {[%clk 0:02:54]}  c5 {[%clk 0:02:58]} 4. e3 {[%clk 0:02:47]}  h6 {[%clk 0:02:55]} 5. Bh4 {[%clk 0:02:45]}  Nc6 {[%clk 0:02:49]} 6. c3 {[%clk 0:02:45]}  Be7 {[%clk 0:02:49]} 7. Bd3 {[%clk 0:02:44]}  b6 {[%clk 0:02:49]} 8. Ngf3 {[%clk 0:02:44]}  Bb7 {[%clk 0:02:50]} 9. O-O {[%clk 0:02:45]}  cxd4 {[%clk 0:02:50]} 10. exd4 {[%clk 0:02:45]}  O-O {[%clk 0:02:50]} 11. Re1 {[%clk 0:02:44]}  d6 {[%clk 0:02:45]} 12. Rc1 {[%clk 0:02:38]}  Nh5 {[%clk 0:02:43]} 13. Bg3 {[%clk 0:02:38]}  Nxg3 {[%clk 0:02:43]} 14. hxg3 {[%clk 0:02:38]}  Re8 {[%clk 0:02:36]} 15. Bb1 {[%clk 0:02:37]}  Bf8 {[%clk 0:02:30]} 16. Ne4 {[%clk 0:02:34]}  d5 {[%clk 0:02:12]} 17. Ned2 {[%clk 0:02:34]}  g6 {[%clk 0:02:13]} 18. g4 {[%clk 0:02:32]}  b5 {[%clk 0:02:07]} 19. g3 {[%clk 0:02:30]}  b4 {[%clk 0:02:08]} 20. Nh4 {[%clk 0:02:28]}  Bg7 {[%clk 0:02:05]} 21. Nb3 {[%clk 0:02:27]}  bxc3 {[%clk 0:02:01]} 22. bxc3 {[%clk 0:02:28]}  e5 {[%clk 0:01:32]} 23. Nc5 {[%clk 0:02:22]}  Qc7 {[%clk 0:01:32]} 24. g5 {[%clk 0:00:53]}  hxg5 {[%clk 0:01:16]} 25. Nxg6 {[%clk 0:00:53]}  e4 {[%clk 0:01:16]} 26. Nxb7 {[%clk 0:00:37]}  Qxb7 {[%clk 0:01:12]} 27. Ne5 {[%clk 0:00:37]}  Bxe5 {[%clk 0:01:05]} 28. dxe5 {[%clk 0:00:36]}  Nxe5 {[%clk 0:01:06]} 29. Re3 {[%clk 0:00:36]}  Nf3+ {[%clk 0:00:40]} 30. Kg2 {[%clk 0:00:36]}  Rad8 {[%clk 0:00:39]} 31. Rxf3 {[%clk 0:00:31]}  exf3+ {[%clk 0:00:38]} 32. Qxf3 {[%clk 0:00:32]}  Kf8 {[%clk 0:00:06]} 33. Rh1 {[%clk 0:00:31]}  g4 {[%clk 0:00:07]} 34. Qxg4 {[%clk 0:00:30]}  d4+ {[%clk 0:00:07]} 35. Kh2 {[%clk 0:00:19]}  d3 {[%clk 0:00:07]} 36. Qg5 {[%clk 0:00:08]}  Rd6 {[%clk 0:00:06]} 37. Rd1 {[%clk 0:00:03]}  Ree6 {[%clk 0:00:06]} 38. Bxd3 {[%clk 0:00:00]}  Rh6+ {[%clk 0:00:06]} 0-1

[Event "December 12 Late 2023"]
[Site "https://www.chess.com"]
[Date "2023.12.12"]
[Round "5"]
[White "Lazavik, Denis"]
[Black "Sjugirov, Sanan"]
[Result "1-0"]
[Board "4"]
[TimeControl "180+1"]
[WhiteFideId "13515110"]
[BlackFideId "4189302"]
[WhiteElo "3061"]
[BlackElo "2925"]
[WhiteTeam "BLR"]
[BlackTeam "HUN"]
[WhiteClock "0:00:19"]
[BlackClock "0:00:05"]

1. d4 {[%clk 0:03:00]}  Nf6 {[%clk 0:03:00]} 2. c4 {[%clk 0:03:01]}  e6 {[%clk 0:03:00]} 3. Nf3 {[%clk 0:03:02]}  b6 {[%clk 0:02:57]} 4. g3 {[%clk 0:03:02]}  Bb7 {[%clk 0:02:57]} 5. Bg2 {[%clk 0:03:03]}  Bb4+ {[%clk 0:02:58]} 6. Bd2 {[%clk 0:03:03]}  c5 {[%clk 0:02:58]} 7. Bxb4 {[%clk 0:03:02]}  cxb4 {[%clk 0:02:59]} 8. O-O {[%clk 0:03:03]}  O-O {[%clk 0:02:59]} 9. Qd3 {[%clk 0:03:03]}  d6 {[%clk 0:02:57]} 10. Nbd2 {[%clk 0:03:04]}  Qe7 {[%clk 0:02:55]} 11. Rfd1 {[%clk 0:02:59]}  h6 {[%clk 0:02:51]} 12. Ne1 {[%clk 0:02:59]}  Bxg2 {[%clk 0:02:49]} 13. Kxg2 {[%clk 0:02:57]}  Nc6 {[%clk 0:02:44]} 14. Nc2 {[%clk 0:02:56]}  a5 {[%clk 0:02:38]} 15. e4 {[%clk 0:02:55]}  Rfc8 {[%clk 0:02:24]} 16. f3 {[%clk 0:02:46]}  Qb7 {[%clk 0:02:22]} 17. Nf1 {[%clk 0:02:42]}  Rab8 {[%clk 0:02:18]} 18. Nfe3 {[%clk 0:02:35]}  b5 {[%clk 0:02:15]} 19. cxb5 {[%clk 0:02:32]}  Qxb5 {[%clk 0:02:16]} 20. Qxb5 {[%clk 0:02:32]}  Rxb5 {[%clk 0:02:17]} 21. Rac1 {[%clk 0:02:32]}  d5 {[%clk 0:02:04]} 22. e5 {[%clk 0:02:27]}  Nd7 {[%clk 0:02:03]} 23. Ne1 {[%clk 0:02:26]}  Rbb8 {[%clk 0:02:01]} 24. f4 {[%clk 0:02:21]}  a4 {[%clk 0:01:54]} 25. Kf2 {[%clk 0:02:17]}  b3 {[%clk 0:01:51]} 26. a3 {[%clk 0:02:16]}  Na5 {[%clk 0:01:49]} 27. Nd3 {[%clk 0:02:12]}  Nb6 {[%clk 0:01:43]} 28. Nc5 {[%clk 0:02:03]}  Nac4 {[%clk 0:01:33]} 29. Nxc4 {[%clk 0:02:01]}  Nxc4 {[%clk 0:01:34]} 30. Rxc4 {[%clk 0:01:47]}  dxc4 {[%clk 0:01:34]} 31. Nxa4 {[%clk 0:01:48]}  Rd8 {[%clk 0:01:25]} 32. Nc3 {[%clk 0:01:47]}  Rb7 {[%clk 0:01:22]} 33. Ke3 {[%clk 0:01:46]}  Rbd7 {[%clk 0:01:23]} 34. Ne2 {[%clk 0:01:35]}  g5 {[%clk 0:01:17]} 35. Rc1 {[%clk 0:01:31]}  Rc7 {[%clk 0:01:14]} 36. Kd2 {[%clk 0:01:27]}  Kg7 {[%clk 0:01:11]} 37. Kc3 {[%clk 0:01:25]}  Kg6 {[%clk 0:01:10]} 38. Rf1 {[%clk 0:01:23]}  Kf5 {[%clk 0:00:49]} 39. fxg5+ {[%clk 0:01:22]}  Kxg5 {[%clk 0:00:50]} 40. Rf4 {[%clk 0:01:17]}  h5 {[%clk 0:00:50]} 41. h4+ {[%clk 0:01:14]}  Kg6 {[%clk 0:00:49]} 42. Rf6+ {[%clk 0:01:14]}  Kg7 {[%clk 0:00:49]} 43. Nf4 {[%clk 0:01:14]}  Rh8 {[%clk 0:00:50]} 44. Rxe6 {[%clk 0:01:10]}  Kf8 {[%clk 0:00:23]} 45. Rf6 {[%clk 0:01:04]}  Ke8 {[%clk 0:00:22]} 46. Nd5 {[%clk 0:00:42]}  Rc8 {[%clk 0:00:20]} 47. Nb6 {[%clk 0:00:36]}  Rc7 {[%clk 0:00:19]} 48. Nxc4 {[%clk 0:00:36]}  Rg8 {[%clk 0:00:19]} 49. Rf3 {[%clk 0:00:36]}  Rg4 {[%clk 0:00:18]} 50. Rd3 {[%clk 0:00:34]}  Ke7 {[%clk 0:00:14]} 51. Kxb3 {[%clk 0:00:34]}  Ke6 {[%clk 0:00:15]} 52. d5+ {[%clk 0:00:32]}  Kf5 {[%clk 0:00:16]} 53. d6 {[%clk 0:00:27]}  Rd7 {[%clk 0:00:16]} 54. Kc3 {[%clk 0:00:26]}  Ke4 {[%clk 0:00:13]} 55. Rd4+ {[%clk 0:00:20]}  Kf3 {[%clk 0:00:05]} 56. e6 {[%clk 0:00:19]} 1-0